[Event "8th Mersin Open 2024"]
[Site "Mersin"]
[Date "2024.11.12"]
[Round "4"]
[White "Turker, Esat Tuna"]
[Black "Mohannad, Farhan"]
[Result "1/2-1/2"]
[ECO "A96"]
[WhiteElo "2050"]
[BlackElo "2115"]
[Annotator "NA RC"]
[PlyCount "98"]
[EventDate "2024.11.10"]
[EventType "swiss"]
[EventCountry "TUR"]
[SourceTitle "playchess.com"]
[Source "ChessBase"]
[SourceQuality "1"]
[TimeControl "5400+30"]

1. Nf3 {[%emt 0:01:00]} e6 {[%emt 0:01:00]} 2. g3 {[%emt 0:00:30]} f5 {[%emt 0:00:30]} 3. Bg2 {[%emt 0:00:30]} Nf6 {[%emt 0:00:00]} 4. O-O {[%emt 0:01:30]} Be7 {[%emt 0:00:00]} 5. c4 {[%emt 0:00:00]} O-O {[%emt 0:00:00]} 6. Nc3 {[%emt 0:04:00]} d6 {[%emt 0:00:00]} 7. d4 {[%emt 0:02:30]} Ne4 {[%emt 0:01:30]} 8. Nxe4 {[%emt 0:07:30]} fxe4 {[%emt 0:00:00]} 9. Nd2 {[%emt 0:03:30]} d5 {[%emt 0:00:00]} 10. f3 {[%emt 0:04:30]} Nc6 $14 {[%emt 0:00:30]} 11. fxe4 {[%emt 0:08:30]} Rxf1+ {[%emt 0:00:30]} 12. Nxf1 {[%emt 0:01:30]} dxc4 {[%emt 0:01:30]} 13. Be3 {[%emt 0:04:30]} e5 {[%emt 0:04:30]} 14. d5 {[%emt 0:01:30]} Na5 {[%emt 0:00:30]} 15. Bd2 {[%emt 0:08:30]} b6 {[%emt 0:11:30]} 16. Bxa5 {[%emt 0:08:30]} bxa5 {[%emt 0:00:30]} 17. Qa4 {[%emt 0:00:30]} Rb8 {[%emt 0:22:30]} 18. Qxc4 {[%emt 0:08:30]} Rb4 {[%emt 0:00:00]} 19. Qc3 {[%emt 0:01:30]} Bd6 {[%emt 0:04:00]} 20. Nd2 {[%emt 0:02:30]} Ba6 {[%emt 0:01:30]} 21. e3 {[%emt 0:04:30]} h5 {[%emt 0:13:30]} 22. a3 {[%emt 0:03:30]} Rb6 {[%emt 0:02:30]} 23. Bf1 {[%emt 0:01:30]} h4 {[%emt 0:06:30]} 24. Bxa6 {[%emt 0:01:47]} Rxa6 {[%emt 0:00:30]} 25. Kg2 {[%emt 0:04:13]} Qg5 {[%emt 0:02:30]} 26. Rf1 {[%emt 0:02:04]} Qg4 {[%emt 0:01:30]} 27. Rf3 {[%emt 0:01:06]} h3+ {[%emt 0:03:30]} 28. Kf2 {[%emt 0:00:36]} a4 {[%emt 0:01:30]} 29. Qc2 {[%emt 0:07:54]} Rb6 {[%emt 0:02:30]} 30. Nc4 {[%emt 0:00:49]} Rb8 {[%emt 0:00:30]} 31. Rf5 {[%emt 0:01:01]} g6 {[%emt 0:01:34]} 32. Rf3 {[%emt 0:01:10]} Qd7 {[%emt 0:02:24]} 33. Ke1 {[%emt 0:01:22]} Qg4 {[%emt 0:02:57]} 34. Rf2 {[%emt 0:01:01]} Rb3 {[%emt 0:01:32]} 35. Nxd6 {[%emt 0:02:08]} cxd6 {[%emt 0:02:34]} 36. Kd2 {[%emt 0:01:00]} Qd7 {[%emt 0:01:24]} 37. Re2 {[%emt 0:01:06]} Rb5 {[%emt 0:02:27]} 38. Ke1 {[%emt 0:00:30]} Rc5 {[%emt 0:00:12]} 39. Qd3 {[%emt 0:00:22]} Qc7 {[%emt 0:03:19]} 40. Rf2 {[%emt 0:00:24]} Qa5+ {[%emt 0:02:06]} 41. Kd1 {[%emt 0:00:13]} Rc1+ {[%emt 0:02:11]} 42. Kxc1 {[%emt 0:01:03]} Qe1+ {[%emt 0:00:03]} 43. Kc2 {[%emt 0:00:17]} Qxf2+ {[%emt 0:00:30]} 44. Qd2 {[%emt 0:00:00]} Qg2 {[%emt 0:00:00]} 45. Kd3 {[%emt 0:00:22]} Qf1+ {[%emt 0:00:01]} 46. Qe2 {[%emt 0:01:11]} Qb1+ {[%emt 0:00:30]} 47. Qc2 {[%emt 0:00:00]} Qf1+ {[%emt 0:00:00]} 48. Qe2 {[%emt 0:00:20]} Qb1+ {[%emt 0:00:22]} 49. Qc2 {[%emt 0:00:00]} Qf1+ {[%emt 0:00:00]} 1/2-1/2

[Event "8th Mersin Open 2024"]
[Site "Mersin"]
[Date "2024.11.12"]
[Round "4"]
[White "Gulsoy, Mustafa Alpago"]
[Black "Koksal, Ege"]
[Result "1/2-1/2"]
[ECO "B13"]
[WhiteElo "2040"]
[BlackElo "2316"]
[Annotator "RC"]
[PlyCount "108"]
[EventDate "2024.11.10"]
[EventType "swiss"]
[EventCountry "TUR"]
[SourceTitle "playchess.com"]
[Source "ChessBase"]
[SourceQuality "1"]
[TimeControl "5400+30"]

1. e4 {[%emt 0:05:00]} c6 {[%emt 0:04:00]} 2. d4 {[%emt 0:01:30]} d5 {[%emt 0:00:00]} 3. exd5 {[%emt 0:00:30]} cxd5 {[%emt 0:00:00]} 4. Bd3 {[%emt 0:00:00]} Nc6 {[%emt 0:01:30]} 5. c3 {[%emt 0:00:00]} Qc7 {[%emt 0:03:30]} 6. h3 {[%emt 0:00:00]} e6 {[%emt 0:00:00]} 7. Nf3 {[%emt 0:01:00]} Bd6 {[%emt 0:00:00]} 8. O-O {[%emt 0:01:30]} Nge7 {[%emt 0:00:00]} 9. Re1 {[%emt 0:04:30]} h6 {[%emt 0:01:00]} 10. Qe2 {[%emt 0:02:30]} Bd7 {[%emt 0:00:30]} 11. Ne5 {[%emt 0:00:30]} Nxe5 {[%emt 0:06:30]} 12. dxe5 {[%emt 0:00:30]} Bc5 {[%emt 0:00:30]} 13. Nd2 {[%emt 0:02:30]} O-O {[%emt 0:19:30]} 14. a4 {[%emt 0:14:30]} a6 {[%emt 0:00:30]} 15. Nb3 {[%emt 0:01:30]} Ba7 {[%emt 0:01:30]} 16. a5 {[%emt 0:04:30]} f6 {[%emt 0:05:30]} 17. Be3 {[%emt 0:01:30]} Bb8 {[%emt 0:13:30]} 18. Bb6 {[%emt 0:23:30]} Qxe5 {[%emt 0:00:30]} 19. Qxe5 {[%emt 0:00:00]} fxe5 {[%emt 0:00:30]} 20. Nc5 {[%emt 0:00:00]} Bc8 {[%emt 0:05:30]} 21. Rad1 {[%emt 0:09:30]} Nc6 {[%emt 0:10:30]} 22. g3 {[%emt 0:01:30]} Bd6 {[%emt 0:06:30]} 23. b4 {[%emt 0:00:30]} e4 {[%emt 0:01:52]} 24. Bb1 {[%emt 0:03:30]} Ne5 {[%emt 0:02:46]} 25. Bxe4 {[%emt 0:03:09]} dxe4 {[%emt 0:01:57]} 26. Rxd6 {[%emt 0:00:50]} Nf3+ {[%emt 0:00:30]} 27. Kf1 {[%emt 0:00:00]} Nxe1 {[%emt 0:01:41]} 28. Kxe1 {[%emt 0:00:01]} e5 {[%emt 0:00:30]} 29. g4 {[%emt 0:00:30]} Rf7 {[%emt 0:00:30]} 30. Rd8+ {[%emt 0:00:30]} Rf8 {[%emt 0:00:30]} 31. Rd5 {[%emt 0:02:50]} Re8 {[%emt 0:08:19]} 32. Kd2 {[%emt 0:02:20]} Rf8 {[%emt 0:02:06]} 33. Ke3 {[%emt 0:01:51]} h5 {[%emt 0:00:01]} 34. gxh5 {[%emt 0:02:33]} Bxh3 {[%emt 0:00:01]} 35. Nxe4 {[%emt 0:01:23]} Bg2 {[%emt 0:01:07]} 36. Rxe5 {[%emt 0:00:25]} Rfe8 {[%emt 0:03:18]} 37. Rxe8+ {[%emt 0:00:38]} Rxe8 {[%emt 0:00:30]} 38. f3 {[%emt 0:00:30]} Bf1 {[%emt 0:00:00]} 39. Kf2 {[%emt 0:01:41]} Bb5 {[%emt 0:00:45]} 40. Nd6 {[%emt 0:00:41]} Re2+ {[%emt 0:00:23]} 41. Kg3 {[%emt 0:00:38]} Bc6 {[%emt 0:00:20]} 42. Bd4 {[%emt 0:02:05]} Kh7 {[%emt 0:01:08]} 43. Kf4 {[%emt 0:04:42]} Re1 {[%emt 0:00:19]} 44. Ne4 {[%emt 0:00:18]} Rh1 {[%emt 0:00:34]} 45. Kg4 {[%emt 0:01:09]} Bd7+ {[%emt 0:02:03]} 46. Kg5 {[%emt 0:00:01]} Bc6 {[%emt 0:00:06]} 47. Ng3 {[%emt 0:01:01]} Rh3 {[%emt 0:00:20]} 48. Kg4 {[%emt 0:00:55]} Bd7+ {[%emt 0:00:30]} 49. Kf4 {[%emt 0:00:00]} Rh4+ {[%emt 0:00:20]} 50. Ke5 {[%emt 0:01:35]} Rh3 {[%emt 0:00:01]} 51. Kf4 {[%emt 0:01:51]} Rh4+ {[%emt 0:00:32]} 52. Ke5 {[%emt 0:00:30]} Rh3 {[%emt 0:00:00]} 53. Bf2 {[%emt 0:01:11]} Rh2 {[%emt 0:00:00]} 54. Bd4 {[%emt 0:00:24]} Rh3 {[%emt 0:00:58]} 1/2-1/2

[Event "8th Mersin Open 2024"]
[Site "Mersin"]
[Date "2024.11.12"]
[Round "4"]
[White "Golshaani, Taha"]
[Black "Isik, Engin Yasar"]
[Result "1-0"]
[ECO "C55"]
[WhiteElo "2026"]
[BlackElo "2172"]
[Annotator "RC"]
[PlyCount "121"]
[EventDate "2024.11.10"]
[EventType "swiss"]
[EventCountry "TUR"]
[SourceTitle "playchess.com"]
[Source "ChessBase"]
[SourceQuality "1"]
[TimeControl "5400+30"]

1. e4 {[%emt 0:01:00]} e5 {[%emt 0:01:00]} 2. Nf3 {[%emt 0:00:30]} Nc6 {[%emt 0:00:30]} 3. Bc4 {[%emt 0:00:00]} Nf6 {[%emt 0:00:00]} 4. d3 {[%emt 0:00:00]} h6 {[%emt 0:00:00]} 5. O-O {[%emt 0:00:00]} d6 {[%emt 0:00:00]} 6. c3 {[%emt 0:03:00]} g6 {[%emt 0:00:00]} 7. d4 {[%emt 0:02:30]} Bg4 {[%emt 0:07:30]} 8. Be2 {[%emt 0:06:30]} Bg7 {[%emt 0:03:30]} 9. Be3 {[%emt 0:05:30]} O-O {[%emt 0:01:30]} 10. Nbd2 {[%emt 0:02:30]} Bd7 {[%emt 0:04:30]} 11. dxe5 {[%emt 0:11:30]} dxe5 {[%emt 0:00:00]} 12. b4 {[%emt 0:00:30]} Nh5 {[%emt 0:00:00]} 13. g3 {[%emt 0:04:30]} Bh3 {[%emt 0:01:30]} 14. Re1 {[%emt 0:00:30]} Qf6 {[%emt 0:00:30]} 15. Kh1 {[%emt 0:05:30]} Bg4 {[%emt 0:07:30]} 16. Kg2 {[%emt 0:05:30]} Qe6 {[%emt 0:03:30]} 17. Qb3 {[%emt 0:00:30]} Bh3+ {[%emt 0:01:30]} 18. Kh1 {[%emt 0:00:30]} Qc8 {[%emt 0:01:30]} 19. Bc4 {[%emt 0:02:30]} Nd8 {[%emt 0:01:30]} 20. Be2 {[%emt 0:02:30]} Kh7 {[%emt 0:02:30]} 21. Nc4 {[%emt 0:02:30]} Re8 {[%emt 0:02:30]} 22. Qd1 {[%emt 0:02:30]} Bd7 {[%emt 0:02:30]} 23. Kg1 {[%emt 0:04:30]} Bc6 {[%emt 0:01:30]} 24. Qb1 {[%emt 0:02:30]} b6 {[%emt 0:01:30]} 25. b5 {[%emt 0:01:30]} Bb7 {[%emt 0:00:30]} 26. a4 {[%emt 0:00:00]} Nf6 {[%emt 0:00:30]} 27. Bd3 {[%emt 0:03:00]} Nh5 {[%emt 0:10:30]} 28. a5 {[%emt 0:02:30]} Rb8 {[%emt 0:00:30]} 29. Be2 {[%emt 0:04:30]} Qe6 {[%emt 0:03:30]} 30. Nfd2 {[%emt 0:01:30]} Nf6 {[%emt 0:00:30]} 31. Qc2 {[%emt 0:02:30]} Bf8 {[%emt 0:02:30]} 32. f3 {[%emt 0:01:30]} Nd7 {[%emt 0:01:30]} 33. Nb3 {[%emt 0:00:30]} Bc8 {[%emt 0:03:30]} 34. Rad1 {[%emt 0:01:30]} Nb7 {[%emt 0:00:30]} 35. Rd5 {[%emt 0:00:30]} f6 {[%emt 0:00:30]} 36. axb6 {[%emt 0:02:48]} axb6 {[%emt 0:01:30]} 37. Nb2 {[%emt 0:01:23]} Nd6 {[%emt 0:02:30]} 38. Red1 {[%emt 0:02:36]} Bb7 {[%emt 0:00:00]} 39. R5d2 {[%emt 0:00:00]} Ra8 {[%emt 0:01:00]} 40. c4 {[%emt 0:02:37]} Ra3 {[%emt 0:00:30]} 41. Ra1 {[%emt 0:00:40]} Rea8 {[%emt 0:00:00]} 42. Rdd1 {[%emt 0:00:20]} Nf7 {[%emt 0:03:00]} 43. Bf2 {[%emt 0:01:08]} Bd6 {[%emt 0:01:30]} 44. Rac1 {[%emt 0:02:42]} Kg7 {[%emt 0:00:30]} 45. c5 {[%emt 0:02:10]} bxc5 {[%emt 0:10:30]} 46. Nxc5 {[%emt 0:00:00]} Nxc5 {[%emt 0:12:15]} 47. Bxc5 {[%emt 0:00:18]} Bxc5+ {[%emt 0:00:30]} 48. Qxc5 {[%emt 0:00:30]} Qb3 {[%emt 0:00:30]} 49. Nc4 {[%emt 0:00:30]} Ra2 {[%emt 0:00:30]} 50. Rd3 {[%emt 0:03:12]} Qa4 {[%emt 0:00:00]} 51. Bf1 {[%emt 0:01:40]} Bc8 {[%emt 0:02:41]} 52. b6 {[%emt 0:01:29]} Be6 {[%emt 0:00:48]} 53. bxc7 {[%emt 0:02:07]} Rc2 {[%emt 0:03:04]} 54. Rxc2 {[%emt 0:03:28]} Qxc2 {[%emt 0:00:02]} 55. Rd8 {[%emt 0:00:12]} Rxd8 {[%emt 0:04:55]} 56. cxd8=Q {[%emt 0:00:30]} Nxd8 {[%emt 0:00:30]} 57. Qe7+ {[%emt 0:00:00]} Nf7 {[%emt 0:00:34]} 58. Qxe6 {[%emt 0:00:10]} Ng5 {[%emt 0:00:00]} 59. Qe7+ {[%emt 0:00:28]} Kg8 {[%emt 0:00:00]} 60. Qxf6 {[%emt 0:00:56]} Kh7 {[%emt 0:00:00]} 61. h4 {[%emt 0:00:16]} 1-0

[Event "8th Mersin Open 2024"]
[Site "Mersin"]
[Date "2024.11.12"]
[Round "4"]
[White "Zahedifar, Anahita"]
[Black "Akkara, Omer"]
[Result "0-1"]
[ECO "E01"]
[WhiteElo "2008"]
[BlackElo "2103"]
[Annotator "NA RC"]
[PlyCount "126"]
[EventDate "2024.11.10"]
[EventType "swiss"]
[EventCountry "TUR"]
[SourceTitle "playchess.com"]
[Source "ChessBase"]
[SourceQuality "1"]
[TimeControl "5400+30"]

1. c4 {[%emt 0:03:00]} c5 {[%emt 0:01:00]} 2. Nf3 {[%emt 0:00:30]} Nf6 {[%emt 0:00:00]} 3. g3 {[%emt 0:00:30]} Nc6 {[%emt 0:00:00]} 4. Bg2 {[%emt 0:00:00]} e6 {[%emt 0:00:30]} 5. O-O {[%emt 0:02:00]} d5 {[%emt 0:00:30]} 6. cxd5 {[%emt 0:01:30]} Nxd5 {[%emt 0:00:30]} 7. d4 $14 {[%emt 0:04:30]} Nf6 {[%emt 0:07:30]} 8. dxc5 {[%emt 0:06:30]} Qxd1 {[%emt 0:01:30]} 9. Rxd1 {[%emt 0:00:30]} Bxc5 {[%emt 0:00:00]} 10. Nc3 {[%emt 0:00:30]} O-O {[%emt 0:01:00]} 11. Bf4 {[%emt 0:04:30]} e5 {[%emt 0:00:30]} 12. Nxe5 {[%emt 0:03:30]} Nxe5 {[%emt 0:00:30]} 13. Bxe5 {[%emt 0:00:30]} Bxf2+ {[%emt 0:00:00]} 14. Kxf2 {[%emt 0:10:30]} Ng4+ {[%emt 0:01:00]} 15. Kg1 {[%emt 0:00:30]} Nxe5 {[%emt 0:00:00]} 16. b3 {[%emt 0:00:30]} Rb8 {[%emt 0:01:00]} 17. Rac1 {[%emt 0:03:30]} Be6 {[%emt 0:02:30]} 18. Nb5 {[%emt 0:05:30]} Bg4 {[%emt 0:07:30]} 19. Kf2 {[%emt 0:03:30]} a6 {[%emt 0:02:30]} 20. Nd6 {[%emt 0:01:30]} b6 {[%emt 0:01:30]} 21. Rd5 {[%emt 0:06:30]} f6 {[%emt 0:04:30]} 22. Rc7 {[%emt 0:02:30]} Be6 {[%emt 0:01:30]} 23. Rd2 {[%emt 0:02:30]} Rfd8 {[%emt 0:03:30]} 24. h3 {[%emt 0:03:30]} h5 {[%emt 0:03:30]} 25. Ke1 {[%emt 0:03:30]} Kf8 {[%emt 0:01:30]} 26. Ra7 {[%emt 0:02:30]} a5 {[%emt 0:00:30]} 27. Nb5 {[%emt 0:00:30]} Rxd2 {[%emt 0:01:30]} 28. Kxd2 {[%emt 0:00:30]} Rd8+ {[%emt 0:00:00]} 29. Ke1 {[%emt 0:02:30]} h4 {[%emt 0:02:00]} 30. gxh4 {[%emt 0:03:30]} Ng6 {[%emt 0:00:30]} 31. Nc7 {[%emt 0:00:00]} Bf7 {[%emt 0:01:30]} 32. Ra8 {[%emt 0:02:00]} Rxa8 {[%emt 0:00:00]} 33. Nxa8 {[%emt 0:00:30]} b5 {[%emt 0:01:00]} 34. Nc7 {[%emt 0:00:30]} b4 {[%emt 0:00:30]} 35. Kd2 {[%emt 0:04:18]} Nxh4 {[%emt 0:00:30]} 36. Be4 {[%emt 0:00:28]} Ke7 {[%emt 0:00:30]} 37. Nb5 {[%emt 0:03:48]} Be6 {[%emt 0:01:30]} 38. Nd4 {[%emt 0:00:06]} Bxh3 {[%emt 0:00:30]} 39. Nc6+ {[%emt 0:00:30]} Kd6 {[%emt 0:00:30]} 40. Nxa5 {[%emt 0:00:00]} g5 {[%emt 0:00:30]} 41. Nc4+ {[%emt 0:02:15]} Kc5 {[%emt 0:00:00]} 42. e3 {[%emt 0:02:17]} g4 {[%emt 0:02:00]} 43. Nb2 {[%emt 0:00:26]} f5 {[%emt 0:03:30]} 44. Nd3+ {[%emt 0:00:06]} Kb5 {[%emt 0:00:30]} 45. Bd5 {[%emt 0:00:27]} g3 {[%emt 0:01:30]} 46. Nf4 {[%emt 0:02:47]} Kc5 {[%emt 0:02:30]} 47. Bb7 {[%emt 0:01:38]} Bf1 {[%emt 0:02:30]} 48. Ke1 {[%emt 0:00:53]} Bb5 {[%emt 0:00:30]} 49. Nh5 {[%emt 0:01:06]} g2 {[%emt 0:00:30]} 50. Kf2 {[%emt 0:00:30]} Bd3 {[%emt 0:00:30]} 51. Nf4 {[%emt 0:01:58]} Bb1 {[%emt 0:00:30]} 52. Bxg2 {[%emt 0:03:57]} Nxg2 {[%emt 0:00:30]} 53. Kxg2 {[%emt 0:00:30]} Bxa2 {[%emt 0:00:00]} 54. Ne6+ {[%emt 0:03:00]} Kd5 {[%emt 0:00:00]} 55. Nd4 {[%emt 0:00:30]} Ke4 {[%emt 0:00:30]} 56. Kf2 {[%emt 0:00:00]} Kd3 {[%emt 0:03:30]} 57. Kf3 {[%emt 0:02:25]} Kc3 {[%emt 0:01:30]} 58. Kf4 {[%emt 0:00:57]} Bb1 {[%emt 0:00:00]} 59. Nxf5 {[%emt 0:00:28]} Bxf5 {[%emt 0:00:00]} 60. Kxf5 {[%emt 0:00:30]} Kxb3 {[%emt 0:00:30]} 61. e4 {[%emt 0:00:30]} Kc4 {[%emt 0:00:30]} 62. e5 {[%emt 0:00:30]} b3 {[%emt 0:00:00]} 63. e6 {[%emt 0:00:00]} b2 {[%emt 0:00:00]} 0-1

[Event "8th Mersin Open 2024"]
[Site "Mersin"]
[Date "2024.11.12"]
[Round "4"]
[White "Yigit, Ahmet Yasir"]
[Black "Keloglu, Ismail Cinar"]
[Result "1-0"]
[ECO "B41"]
[WhiteElo "1927"]
[BlackElo "1805"]
[Annotator "NA RC"]
[PlyCount "103"]
[EventDate "2024.11.10"]
[EventType "swiss"]
[EventCountry "TUR"]
[SourceTitle "playchess.com"]
[Source "ChessBase"]
[SourceQuality "1"]
[TimeControl "5400+30"]

1. e4 {[%emt 0:08:00]} c5 {[%emt 0:02:00]} 2. Nf3 {[%emt 0:02:30]} e6 {[%emt 0:00:30]} 3. d4 {[%emt 0:01:30]} cxd4 {[%emt 0:00:30]} 4. Nxd4 {[%emt 0:00:00]} a6 {[%emt 0:00:30]} 5. g3 {[%emt 0:00:00]} d5 {[%emt 0:00:00]} 6. Nf3 {[%emt 0:00:00]} Nf6 {[%emt 0:01:00]} 7. exd5 {[%emt 0:01:00]} Qxd5 {[%emt 0:05:30]} 8. Qxd5 {[%emt 0:00:30]} Nxd5 {[%emt 0:00:30]} 9. Bg2 {[%emt 0:00:00]} Be7 {[%emt 0:02:30]} 10. O-O {[%emt 0:00:00]} O-O {[%emt 0:00:00]} 11. a3 {[%emt 0:08:30]} b5 {[%emt 0:01:00]} 12. Ne5 {[%emt 0:01:30]} Bf6 {[%emt 0:01:30]} 13. Nd3 {[%emt 0:00:00]} Nd7 {[%emt 0:03:30]} 14. Nd2 {[%emt 0:00:00]} Bb7 {[%emt 0:02:30]} 15. c4 {[%emt 0:00:00]} bxc4 {[%emt 0:02:30]} 16. Nxc4 {[%emt 0:00:00]} Bc6 {[%emt 0:00:30]} 17. Nf4 {[%emt 0:00:30]} Nxf4 {[%emt 0:00:30]} 18. Bxf4 {[%emt 0:00:30]} Bxg2 {[%emt 0:00:30]} 19. Kxg2 {[%emt 0:00:30]} Rac8 {[%emt 0:00:30]} 20. Rac1 {[%emt 0:16:30]} g5 {[%emt 0:21:30]} 21. Be3 {[%emt 0:02:30]} Rfd8 {[%emt 0:05:30]} 22. b4 {[%emt 0:04:30]} h6 {[%emt 0:03:30]} 23. Rfd1 {[%emt 0:03:30]} Ne5 {[%emt 0:06:30]} 24. Rxd8+ {[%emt 0:02:30]} Rxd8 {[%emt 0:00:30]} 25. Nxe5 {[%emt 0:00:30]} Bxe5 {[%emt 0:00:30]} 26. Rc6 {[%emt 0:00:00]} Ra8 {[%emt 0:01:30]} 27. a4 {[%emt 0:00:00]} Kf8 {[%emt 0:02:30]} 28. f4 {[%emt 0:02:30]} Bf6 {[%emt 0:04:30]} 29. Kf3 {[%emt 0:00:30]} Ke8 {[%emt 0:00:30]} 30. fxg5 {[%emt 0:02:30]} hxg5 {[%emt 0:01:30]} 31. Kg4 {[%emt 0:00:30]} Rb8 {[%emt 0:00:30]} 32. Bd2 {[%emt 0:03:30]} Be7 {[%emt 0:06:30]} 33. Rxa6 {[%emt 0:06:30]} f5+ {[%emt 0:00:00]} 34. Kf3 {[%emt 0:00:30]} g4+ {[%emt 0:06:28]} 35. Ke2 {[%emt 0:01:30]} Bxb4 {[%emt 0:01:00]} 36. Bf4 {[%emt 0:00:30]} Rc8 {[%emt 0:01:14]} 37. Rxe6+ {[%emt 0:00:30]} Kf7 {[%emt 0:01:23]} 38. Rb6 {[%emt 0:00:30]} Ba5 {[%emt 0:02:59]} 39. Rb5 {[%emt 0:00:30]} Re8+ {[%emt 0:01:14]} 40. Kd3 {[%emt 0:01:30]} Rd8+ {[%emt 0:00:16]} 41. Kc4 {[%emt 0:00:30]} Rc8+ {[%emt 0:00:27]} 42. Rc5 {[%emt 0:01:30]} Rxc5+ {[%emt 0:01:20]} 43. Kxc5 {[%emt 0:00:00]} Ke6 {[%emt 0:00:20]} 44. Kb5 {[%emt 0:00:00]} Be1 {[%emt 0:00:17]} 45. a5 {[%emt 0:01:30]} Kd5 {[%emt 0:01:51]} 46. a6 {[%emt 0:01:30]} Bf2 {[%emt 0:00:30]} 47. Bc7 {[%emt 0:00:00]} f4 {[%emt 0:02:54]} 48. Bxf4 {[%emt 0:00:00]} Ke4 {[%emt 0:00:30]} 49. Bc7 {[%emt 0:00:30]} Ba7 {[%emt 0:00:30]} 50. Bb6 {[%emt 0:00:30]} Bb8 {[%emt 0:00:30]} 51. Kc6 {[%emt 0:00:30]} Kf3 {[%emt 0:00:30]} 52. Kb7 {[%emt 0:00:30]} 1-0

[Event "8th Mersin Open 2024"]
[Site "Mersin"]
[Date "2024.11.12"]
[Round "4"]
[White "Kilic, Cihan"]
[Black "Ozturk, Baran"]
[Result "1-0"]
[ECO "D63"]
[WhiteElo "1894"]
[BlackElo "1853"]
[Annotator "NA RC"]
[PlyCount "63"]
[EventDate "2024.11.10"]
[EventType "swiss"]
[EventCountry "TUR"]
[SourceTitle "playchess.com"]
[Source "ChessBase"]
[SourceQuality "1"]
[TimeControl "5400+30"]

1. d4 {[%emt 0:01:00]} Nf6 {[%emt 0:01:00]} 2. Nf3 {[%emt 0:00:00]} e6 {[%emt 0:00:30]} 3. c4 {[%emt 0:00:00]} d5 {[%emt 0:00:00]} 4. Nc3 {[%emt 0:00:30]} c6 {[%emt 0:00:00]} 5. Bg5 {[%emt 0:02:30]} Be7 {[%emt 0:01:30]} 6. e3 {[%emt 0:00:30]} O-O {[%emt 0:00:30]} 7. Rc1 {[%emt 0:01:30]} Nbd7 {[%emt 0:00:30]} 8. h3 {[%emt 0:01:30]} dxc4 {[%emt 0:05:30]} 9. Bxc4 {[%emt 0:00:30]} b5 {[%emt 0:00:30]} 10. Bd3 {[%emt 0:08:30]} Bb7 {[%emt 0:00:30]} 11. O-O {[%emt 0:00:30]} Rc8 {[%emt 0:00:30]} 12. Qe2 {[%emt 0:00:30]} a6 {[%emt 0:02:30]} 13. Rfd1 {[%emt 0:01:30]} Qb6 {[%emt 0:07:30]} 14. Ne5 {[%emt 0:00:30]} Rfe8 {[%emt 0:09:30]} 15. Nxd7 {[%emt 0:15:30]} Nxd7 {[%emt 0:00:30]} 16. Bxe7 {[%emt 0:04:30]} Rxe7 {[%emt 0:00:30]} 17. Ne4 {[%emt 0:00:00]} Rd8 {[%emt 0:26:30]} 18. Qh5 {[%emt 0:07:00]} f5 {[%emt 0:06:30]} 19. Nc5 {[%emt 0:01:30]} Nxc5 {[%emt 0:02:30]} 20. Rxc5 {[%emt 0:01:30]} Red7 {[%emt 0:04:30]} 21. Bc2 {[%emt 0:01:30]} g6 {[%emt 0:02:30]} 22. Qg5 {[%emt 0:03:30]} Kg7 {[%emt 0:02:30]} 23. Bb3 {[%emt 0:00:30]} Re8 {[%emt 0:01:30]} 24. Rdc1 {[%emt 0:02:30]} Qc7 {[%emt 0:02:30]} 25. Re5 {[%emt 0:02:30]} Qd6 {[%emt 0:02:52]} 26. h4 {[%emt 0:04:30]} Rf7 {[%emt 0:03:51]} 27. Qf4 {[%emt 0:04:30]} Qd7 {[%emt 0:02:25]} 28. Bd1 {[%emt 0:03:30]} Rc8 {[%emt 0:01:49]} 29. h5 {[%emt 0:05:30]} h6 {[%emt 0:02:00]} 30. hxg6 {[%emt 0:03:30]} Kxg6 {[%emt 0:00:02]} 31. Bb3 {[%emt 0:00:30]} Rf6 {[%emt 0:01:38]} 32. Bxe6 {[%emt 0:00:30]} 1-0

[Event "8th Mersin Open 2024"]
[Site "Mersin"]
[Date "2024.11.12"]
[Round "4"]
[White "Asgharvand, Davood"]
[Black "Oz, Ege"]
[Result "1-0"]
[ECO "C18"]
[WhiteElo "1874"]
[BlackElo "1895"]
[Annotator "NA RC"]
[PlyCount "58"]
[EventDate "2024.11.10"]
[EventType "swiss"]
[EventCountry "TUR"]
[SourceTitle "playchess.com"]
[Source "ChessBase"]
[SourceQuality "1"]
[TimeControl "5400+30"]

1. e4 {[%emt 0:01:00]} e6 {[%emt 0:01:00]} 2. d4 {[%emt 0:00:30]} d5 {[%emt 0:00:00]} 3. Nc3 {[%emt 0:00:00]} Bb4 {[%emt 0:00:00]} 4. e5 {[%emt 0:00:00]} c5 {[%emt 0:00:30]} 5. a3 {[%emt 0:00:30]} Bxc3+ {[%emt 0:00:30]} 6. bxc3 {[%emt 0:00:00]} Qc7 {[%emt 0:00:00]} 7. Nf3 {[%emt 0:01:00]} Bd7 {[%emt 0:02:00]} 8. Bd3 {[%emt 0:00:30]} c4 {[%emt 0:00:30]} 9. Be2 {[%emt 0:00:30]} Ba4 {[%emt 0:00:30]} 10. O-O {[%emt 0:00:30]} h6 {[%emt 0:02:30]} 11. g3 {[%emt 0:01:30]} Ne7 {[%emt 0:01:30]} 12. Nh4 {[%emt 0:00:30]} Nbc6 {[%emt 0:01:30]} 13. f4 {[%emt 0:00:30]} g6 {[%emt 0:01:30]} 14. Be3 {[%emt 0:02:30]} O-O-O {[%emt 0:05:30]} 15. Qd2 {[%emt 0:00:30]} Rdg8 {[%emt 0:13:30]} 16. Kh1 {[%emt 0:01:30]} Nf5 {[%emt 0:06:30]} 17. Nxf5 {[%emt 0:06:30]} exf5 {[%emt 0:00:30]} 18. Bf3 {[%emt 0:00:30]} Qd7 {[%emt 0:00:30]} 19. Qg2 {[%emt 0:00:30]} Ne7 {[%emt 0:06:30]} 20. Rab1 {[%emt 0:09:30]} g5 {[%emt 0:14:30]} 21. Bh5 {[%emt 0:15:30]} Qe6 {[%emt 0:07:30]} 22. g4 {[%emt 0:08:30]} Bd7 {[%emt 0:09:30]} 23. fxg5 {[%emt 0:05:30]} hxg5 {[%emt 0:00:00]} 24. gxf5 {[%emt 0:00:00]} Nxf5 {[%emt 0:00:00]} 25. Bg4 {[%emt 0:02:00]} Qg6 {[%emt 0:04:30]} 26. Qxd5 {[%emt 0:16:30]} Bc6 {[%emt 0:01:30]} 27. Bxf5+ {[%emt 0:00:30]} Qxf5 {[%emt 0:00:30]} 28. Qxc6+ {[%emt 0:00:30]} Kb8 {[%emt 0:00:30]} 29. Qd5 {[%emt 0:00:30]} Qg6 {[%emt 0:01:30]} 1-0